fUST/lending_fUST_20251018
["ID","MTS","AMOUNT","RATE_DAILY","PERIOD"]
[391663899,1760723439535,-200.33726517,0.00027748,2]
[391663901,1760723439544,-406.72,0.00027771,2]
[391663903,1760723439553,-300.0,0.00027893,30]
[391663906,1760723439562,-300.0,0.00027893,30]
[391663907,1760723439571,-300.0,0.00027893,30]
[391663910,1760723439582,-300.0,0.00027893,30]
[391663912,1760723439599,-300.0,0.00027893,30]
[391663914,1760723439608,-300.0,0.00027893,30]
[391663916,1760723439616,-300.0,0.00027893,30]
[391663918,1760723439627,-300.0,0.00027893,30]
[391663921,1760723439636,-300.0,0.00027893,30]
[391663923,1760723439645,-300.0,0.00027893,30]
[391663925,1760723439655,-300.0,0.00027893,30]
[391663927,1760723439664,-300.0,0.00027893,30]
[391663929,1760723439674,-300.0,0.00027893,30]
[391663931,1760723439684,-300.0,0.00027893,30]
[391663932,1760723439693,-300.0,0.00027893,30]
[391663934,1760723439702,-600.0,0.00027893,30]
[391663936,1760723439712,-500.0,0.000279,5]
[391663938,1760723439721,-372.10225396,0.000279,2]
[391663941,1760723439730,-500.0,0.000279,5]
[391663942,1760723439743,-528.55244104,0.000279,5]
[391663944,1760723439752,-151.0,0.000279,13]
[391663947,1760723439761,-1280.14,0.000279,3]
[391663949,1760723439771,-477.74,0.00027903,8]
[391663951,1760723439780,-500.0,0.00027903,2]
[391663953,1760723439790,-153.0,0.0002791,2]
[391663955,1760723439800,-153.0,0.0002791,2]
[391663956,1760723439809,-153.0,0.0002791,2]
[391663958,1760723439818,-153.0,0.0002791,2]
[391663960,1760723439827,-153.0,0.0002791,2]
[391663962,1760723439838,-153.0,0.0002791,2]
[391663964,1760723439848,-153.0,0.0002791,2]
[391663966,1760723439857,-153.0,0.0002791,2]
[391663968,1760723439869,-153.0,0.0002791,2]
[391663971,1760723439879,-153.0,0.0002791,2]
[391663973,1760723439888,-153.0,0.0002791,2]
[391663974,1760723439898,-153.0,0.0002791,2]
[391663977,1760723439907,-153.0,0.0002791,2]
[391663979,1760723439917,-153.0,0.0002791,2]
[391663981,1760723439926,-153.0,0.0002791,2]
[391663982,1760723439935,-153.0,0.0002791,2]
[391663984,1760723439945,-153.0,0.0002791,2]
[391663987,1760723439954,-153.0,0.0002791,2]
[391663989,1760723439964,-153.0,0.0002791,2]
[391663990,1760723439973,-153.0,0.0002791,2]
[391663992,1760723439983,-153.0,0.0002791,2]
[391663994,1760723439993,-153.0,0.0002791,2]
[391663997,1760723440003,-153.0,0.0002791,2]
[391663999,1760723440012,-153.0,0.0002791,2]
[391664000,1760723440020,-153.0,0.0002791,2]
[391664002,1760723440030,-153.0,0.0002791,2]
[391664004,1760723440039,-153.0,0.0002791,2]
[391664007,1760723440049,-153.0,0.0002791,2]
[391664009,1760723440059,-153.0,0.0002791,2]
[391664011,1760723440067,-153.0,0.0002791,2]
[391664013,1760723440076,-160.228,0.00027954,18]
[391664014,1760723440088,-461.15,0.00028094,9]
[391664017,1760723440098,-168.65,0.00028094,9]
[391664019,1760723440108,-168.65,0.00028094,9]
[391664021,1760723440117,-168.65,0.00028094,9]
[391664023,1760723440127,-168.65,0.00028094,9]
[391664025,1760723440137,-168.65,0.00028094,9]
[391664027,1760723440146,-168.64,0.00028094,9]
[391664029,1760723440155,-151.0,0.000281,12]
[391664031,1760723440164,-160.0,0.0002812,2]
[391664033,1760723440173,-323.0,0.00028143,2]
[391664035,1760723440182,-1280.14,0.00028146,3]
[391664037,1760723440191,-168.0,0.00028152,2]
[391664039,1760723440200,-502.5569066,0.0002816,5]
[391664041,1760723440210,-500.0,0.0002816,5]
[391664043,1760723440221,-166.0,0.00028166,2]
[391664045,1760723440230,-477.74,0.00028176,9]
[391664047,1760723440239,-500.0,0.00028177,2]
[391664049,1760723440248,-151.0,0.000282,14]
[391664051,1760723440257,-62459.4435981,0.000282,2]
[391664052,1760723440266,-162.48578327,0.000282,2]
[391664055,1760723440275,-266.15926466,0.00028205,2]
[391664057,1760723440284,-1000.0,0.00028221,5]
[391664058,1760723440294,-500.0,0.00028221,5]
[391664061,1760723440303,-1000.0,0.00028221,5]
[391664063,1760723440313,-1000.0,0.00028221,5]
[391664065,1760723440324,-550.71986102,0.00028221,5]
[391664067,1760723440337,-1000.0,0.00028221,2]
[391664069,1760723440346,-500.0,0.00028221,5]
[391664071,1760723440355,-1000.0,0.00028221,5]
[391664073,1760723440366,-1000.0,0.00028221,5]
[391664075,1760723440376,-500.0,0.00028221,5]
[391664076,1760723440385,-1000.0,0.00028221,3]
[391664077,1760723440394,-1000.0,0.00028221,5]
[391664078,1760723440403,-3525.6172453,0.00028348,2]
[391664079,1760723440412,-151.0,0.000284,10]
[391664080,1760723440421,-62459.4435981,0.00028446,2]
[391664081,1760723440430,-162.48578327,0.00028446,2]
[391664082,1760723440439,-410.083491,0.00028446,30]
[391664083,1760723440449,-410.083491,0.00028446,30]
[391664084,1760723440458,-410.083491,0.00028446,30]
[391664085,1760723440469,-410.083491,0.00028446,30]
[391664086,1760723440477,-151.0,0.00028446,30]
[391664087,1760723440487,-151.0,0.00028446,30]
[391664088,1760723440497,-371.643581,0.00028446,30]
[391664089,1760723440506,-371.643581,0.00028446,30]
[391664090,1760723440515,-371.643581,0.00028446,30]
[391664091,1760723440524,-371.643581,0.00028446,30]
[391664092,1760723440533,-1000.0,0.00028448,5]
[391664093,1760723440542,-1000.0,0.00028448,5]
[391664094,1760723440553,-477.74,0.0002845,10]
[391664095,1760723440563,-168.0,0.00028451,7]
[391664096,1760723440571,-500.0,0.00028451,2]
[391664097,1760723440583,-4715.26,0.00028455,4]
[391664099,1760723440596,-393.0,0.00028455,2]
[391664101,1760723440605,-2470.8,0.000285,2]
[391664103,1760723440614,-151.0,0.000286,19]
[391664105,1760723440624,-8298.11548992,0.000286,2]
[391664107,1760723440634,-365.66032749,0.000286,2]
[391664109,1760723440643,-417.47961962,0.000286,2]
[391664111,1760723440652,-5251.63102768,0.000286,2]
[391664113,1760723440662,-311.03923356,0.000286,2]
[391664126,1760723440786,-1280.14,0.00028663,4]
[391664128,1760723440796,-260.0,0.00028668,2]
[391664130,1760723440806,-151.0,0.000287,10]
[391664132,1760723440815,-461.4913703,0.00028708,5]
[391664134,1760723440824,-166.0,0.00028714,2]
[391664136,1760723440836,-477.74,0.00028724,11]
[391664138,1760723440844,-500.0,0.00028725,2]
[391664140,1760723440854,-151.65684413,0.00028742,7]
[391664142,1760723440863,-500.0,0.00028767,30]
[391664144,1760723440872,-1500.0,0.00028768,5]
[391664146,1760723440882,-1500.0,0.00028768,5]
[391664148,1760723440891,-261.76454694,0.00028768,2]
[391664150,1760723440901,-1500.0,0.00028768,5]
[391664153,1760723440911,-1500.0,0.00028768,5]
[391664154,1760723440920,-1502.56346801,0.00028768,3]
[391664156,1760723440929,-1500.0,0.00028768,5]
[391664158,1760723440939,-3525.6172453,0.0002877,2]
[391664160,1760723440948,-500.0,0.00028773,5]
[391664162,1760723440957,-391.4229224,0.00028795,30]
[391664164,1760723440966,-288.97291592,0.00028805,2]
[391664166,1760723440975,-151.0,0.000289,14]
[391664168,1760723440985,-62459.4435981,0.00028963,2]
[391664170,1760723440994,-162.48578327,0.00028963,2]
[391664172,1760723441003,-500.0,0.00028973,5]
[391664174,1760723441012,-502.55504406,0.00028973,2]
[391664176,1760723441021,-500.0,0.00028973,5]
[391664178,1760723441030,-500.0,0.00028973,5]
[391664180,1760723441039,-1280.14,0.0002898,4]
[391664182,1760723441049,-487.45734981,0.0002898,2]
[391664184,1760723441059,-666.88,0.00028984,3]
[391664186,1760723441068,-333.44,0.00028984,3]
[391664188,1760723441077,-2667.48,0.00028985,3]
[391664190,1760723441087,-1333.74,0.00028985,3]
[391664192,1760723441096,-81328.53633641,0.0002899,2]
[391664194,1760723441106,-666.281744,0.0002899,30]
[391664196,1760723441115,-666.281744,0.0002899,30]
[391664198,1760723441124,-666.281744,0.0002899,30]
[391664200,1760723441134,-666.281744,0.0002899,30]
[391664202,1760723441142,-410.083491,0.0002899,30]
[391664204,1760723441152,-410.083491,0.0002899,30]
[391664206,1760723441161,-410.083491,0.0002899,30]
[391664208,1760723441169,-410.083491,0.0002899,30]
[391664210,1760723441179,-151.0,0.0002899,30]
[391664212,1760723441188,-151.0,0.0002899,30]
[391664214,1760723441198,-371.643581,0.0002899,30]
[391664216,1760723441207,-371.643581,0.0002899,30]
[391664218,1760723441216,-371.643581,0.0002899,30]
[391664220,1760723441226,-500.0,0.00028996,5]
[391664222,1760723441236,-477.74,0.00028998,12]
[391664224,1760723441245,-500.0,0.00028999,2]
[391664226,1760723441254,-1111.59,0.00029,2]
[391664228,1760723441263,-1156.27813756,0.0002907,2]
[391664230,1760723441272,-151.0,0.000291,17]
[391664232,1760723441281,-500.0,0.00029133,5]
[391664234,1760723441290,-500.0,0.00029133,5]
[391664236,1760723441299,-205.13236645,0.00029133,5]
[391664238,1760723441308,-1111.59,0.00029174,2]
[391664240,1760723441317,-500.0,0.00029188,5]
[391664242,1760723441326,-500.0,0.00029188,5]
[391664244,1760723441337,-3525.6172453,0.00029192,2]
[391664246,1760723441346,-1788.62826032,0.00029215,2]
[391664248,1760723441356,-360.0,0.00029216,2]
[391664250,1760723441365,-572.0,0.00029243,5]
[391664252,1760723441375,-500.0,0.00029243,5]
[391664254,1760723441384,-166.0,0.00029262,2]
[391664256,1760723441393,-477.74,0.00029272,13]
[391664258,1760723441402,-500.0,0.00029273,2]
[391664260,1760723441411,-4715.26,0.00029277,6]
[391664262,1760723441420,-500.0,0.00029297,5]
[391664264,1760723441429,-151.0,0.000293,18]
[391664266,1760723441439,-151.0,0.000293,18]
[391664268,1760723441448,-1280.14,0.000293,4]
[391664270,1760723441458,-1000.0,0.00029316,5]
[391664272,1760723441467,-2000.0,0.00029316,5]
[391664274,1760723441476,-2000.0,0.00029316,5]
[391664276,1760723441486,-2000.0,0.00029316,5]
[391664278,1760723441495,-1000.0,0.00029316,5]
[391664280,1760723441505,-1000.0,0.00029321,5]
[391664282,1760723441515,-1111.59,0.00029348,2]
[391664284,1760723441524,-500.0,0.00029352,5]
[391664286,1760723441533,-248.20449611,0.00029369,4]
[391664288,1760723441542,-151.0,0.000294,13]
[391664290,1760723441551,-151.0,0.000294,20]
[391664292,1760723441561,-151.0,0.000294,20]
[391664294,1760723441570,-311.78656717,0.00029405,2]
[391664295,1760723441582,-500.0,0.00029407,5]
[391664297,1760723441591,-244.46671191,0.00029462,5]
[391664299,1760723441600,-324.97156654,0.00029468,2]
[391664301,1760723441609,-5000.0,0.00029472,2]
[391664303,1760723441618,-5879.13390113,0.00029484,2]
[391664305,1760723441629,-151.0,0.000295,19]
[391664307,1760723441638,-177.96999264,0.000295,2]
[391664309,1760723441647,-29226.32396281,0.000295,3]
[391664311,1760723441657,-1000.0,0.00029521,5]
[391664313,1760723441666,-966.48180986,0.00029521,5]
[391664315,1760723441675,-477.74,0.00029546,14]
[391664317,1760723441684,-500.0,0.00029547,2]
[391664319,1760723441693,-1000.0,0.00029551,2]
[391664321,1760723441702,-1000.0,0.00029551,2]
[391664323,1760723441712,-1000.0,0.00029551,2]
[391664325,1760723441721,-1000.0,0.00029551,2]
[391664327,1760723441731,-344.7651,0.00029551,2]
[391664329,1760723441740,-160.0,0.00029564,30]
[391664331,1760723441749,-160.83984091,0.00029573,5]
[391664333,1760723441758,-500.0,0.00029573,4]
[391664335,1760723441768,-487.45734981,0.0002958,2]
[391664337,1760723441777,-151.0,0.0002959,2]
[391664339,1760723441787,-974.91469962,0.0002959,2]
[391664341,1760723441796,-666.281744,0.0002959,30]
[391664343,1760723441805,-666.281744,0.0002959,30]
[391664345,1760723441814,-666.281744,0.0002959,30]
[391664347,1760723441823,-666.281744,0.0002959,30]
[391664349,1760723441834,-370000.0,0.000296,2]
[391664351,1760723441843,-160.0,0.000296,3]
[391664353,1760723441851,-151.0,0.000296,17]
[391664355,1760723441861,-151.0,0.000296,10]
[391664357,1760723441873,-151.0,0.000296,2]
[391664359,1760723441882,-666.281744,0.000296,30]
[391664361,1760723441893,-666.281744,0.000296,30]
[391664363,1760723441902,-666.281744,0.000296,30]
[391664365,1760723441911,-666.281744,0.000296,30]
[391664367,1760723441921,-410.083491,0.000296,30]
[391664369,1760723441930,-410.083491,0.000296,30]
[391664371,1760723441939,-410.083491,0.000296,30]
[391664373,1760723441949,-410.083491,0.000296,30]
[391664375,1760723441958,-151.0,0.000296,30]
[391664377,1760723441967,-151.0,0.000296,30]
[391664379,1760723441976,-371.643581,0.000296,30]
[391664381,1760723441986,-371.643581,0.000296,30]
[391664383,1760723441996,-371.643581,0.000296,30]
[391664385,1760723442006,-3525.6172453,0.00029614,2]
[391664387,1760723442016,-1427.0827022,0.00029663,2]
[391664389,1760723442025,-9713.4112216,0.00029663,2]
[391664391,1760723442034,-500.0,0.00029673,5]
[391664393,1760723442043,-27764.82,0.000297,7]
[391664395,1760723442053,-3417.13,0.000297,2]
[391664397,1760723442062,-160.0,0.000297,7]
[391664399,1760723442071,-151.0,0.000297,14]
[391664401,1760723442080,-578183.23977487,0.000297,2]
[391664413,1760723442178,-9639.71046443,0.000297,2]
[391664415,1760723442189,-895.79620322,0.000297,2]
[391664557,1760723443326,-250.0,0.00027618,2]
[391664559,1760723443338,-250.0,0.00027618,2]
[391664561,1760723443347,-250.0,0.00027618,2]
[391664564,1760723443356,-250.0,0.00027618,2]
[391664566,1760723443365,-371.643581,0.0002899,30]
[391664568,1760723443376,-371.643581,0.000296,30]
[391664570,1760723443385,-72254.91580361,0.000297,2]
[391666688,1760723464973,417.15472785,0.00027,2]
[391668722,1760723495737,150.0,0.00025672,2]
[391668728,1760723582106,150.0,0.00023803,2]
[391668729,1760723582535,250.07,0.00025967,2]
[391668730,1760723664368,402.69031254,0.00027,2]
[391668731,1760723666522,150.0,0.00023837,2]
[391668732,1760723666957,239.89,0.00026004,2]
[391668733,1760723678251,2880.5139541,0.00026754,2]
[391668734,1760723684224,54589.4268844,0.00026754,2]
[391668735,1760723729458,3663.6326579,0.00026738,2]
[391668736,1760723745128,150.0,0.00025205,2]
[391668737,1760723745623,172.5,0.00025805,2]
[391668738,1760723746154,195.0,0.00026405,2]
[391668739,1760723752855,150.0,0.00023492,2]
[391668740,1760723753307,229.96,0.00025628,2]
[391668741,1760723764369,343.64601407,0.000253,2]
[391668742,1760723834546,150.0,0.00023501,2]
[391668743,1760723835027,220.29,0.00025637,2]
[391668744,1760723855271,3143.43,0.00026027,30]
[391668745,1760723867951,1047.8879286,0.00026779,2]
[391668746,1760723871902,-200.0,0.00027005,2]
[391668748,1760723875719,584.338307,0.00026657,2]
[391668757,1760723913505,317.5948386,0.00026524,18]
[391668758,1760723918002,150.0,0.00023501,2]
[391668759,1760723919009,210.87,0.00025637,2]
[391668762,1760724000476,150.0,0.00023439,2]
[391668763,1760724000903,201.68,0.0002557,2]
[391668764,1760724073629,915.00755389,0.0003407,120]
[391668765,1760724083730,150.0,0.00023398,2]
[391668766,1760724084175,192.73,0.00025525,2]
[391668769,1760724127777,185.0,0.00024,120]
[391668774,1760724166973,150.0,0.0002353,2]
[391668775,1760724167402,184.01,0.00025669,2]
[391668826,1760724245937,150.0,0.00023636,2]
[391668827,1760724246367,175.5,0.00025785,2]
[391668857,1760724329318,150.0,0.000224,2]
[391668858,1760724329743,171.04,0.00023467,2]
[391668859,1760724330200,256.55,0.00024533,2]
[391668860,1760724330637,342.07,0.000256,2]
[391668861,1760724331034,427.59,0.00026667,2]
[391668862,1760724367685,188.088582,0.00026499,2]
[391668863,1760724367767,150.0,0.00025205,2]
[391668864,1760724368194,172.5,0.00025805,2]
[391668865,1760724368632,195.0,0.00026405,2]
[391669151,1760724383622,417.15472785,0.00027,2]
[391669152,1760724409034,150.0,0.00022406,2]
[391669153,1760724409427,150.0,0.00023473,2]
[391669154,1760724410364,205.11,0.0002454,2]
[391669155,1760724410808,273.48,0.00025607,2]
[391669156,1760724411296,341.86,0.00026673,2]
[391669157,1760724419137,-217.5,0.00027005,2]
[391669158,1760724419159,-12.0105113,0.00027522,2]
[391669209,1760724487702,150.0,0.00022507,2]
[391669210,1760724488155,150.0,0.00023579,2]
[391669211,1760724488606,162.33,0.0002465,2]
[391669212,1760724489046,216.44,0.00025722,2]
[391669213,1760724489480,270.55,0.00026794,2]
[391670507,1760724561928,150.0,0.00022293,2]
[391670508,1760724562821,150.0,0.00023355,2]
[391670509,1760724563773,150.0,0.00024417,2]
[391670510,1760724564227,168.11,0.00025478,2]
[391670511,1760724564767,210.14,0.0002654,2]
[391670810,1760724632340,-252.17,0.00027601,2]
[391670811,1760724632352,-240.0,0.00027605,2]
[391670813,1760724632363,-1200.0,0.00027619,2]
[391670814,1760724632375,-300.0,0.0002762,2]
[391670816,1760724632386,-300.0,0.0002762,2]
[391670817,1760724632398,-300.0,0.0002762,2]
[391670818,1760724632410,-1200.0,0.00027621,2]
[391670820,1760724632419,-1786.6,0.00027624,2]
[391670821,1760724632429,-1786.6,0.00027624,2]
[391670822,1760724632439,-1786.6,0.00027624,2]
[391670824,1760724632450,-1786.6,0.00027624,2]
[391670825,1760724632460,-1786.6,0.00027624,2]
[391670826,1760724632471,-1786.6,0.00027624,2]
[391670828,1760724632482,-50000.0,0.00027624,2]
[391670829,1760724632492,-1786.6,0.00027627,2]
[391670830,1760724632503,-1786.6,0.00027627,2]
[391670832,1760724632514,-1786.6,0.00027627,2]
[391670833,1760724632524,-1786.6,0.00027629,2]
[391670835,1760724632534,-1786.6,0.00027632,2]
[391670836,1760724632545,-1786.6,0.00027632,2]
[391670837,1760724632556,-1786.6,0.00027662,2]
[391670839,1760724632567,-1786.6,0.00027662,2]
[391670840,1760724632578,-1786.6,0.00027662,2]
[391670841,1760724632590,-318.49,0.00027671,7]
[391670843,1760724632601,-1786.6,0.00027672,2]
[391670844,1760724632611,-501.15821749,0.00027673,2]
[391670845,1760724632621,-481.13614356,0.00027673,5]
[391670847,1760724632630,-500.0,0.00027673,5]
[391670848,1760724632639,-169.61895105,0.00027673,5]
[391670849,1760724632650,-500.0,0.00027673,5]
[391670851,1760724632660,-42.49879182,0.00027673,5]
[391670852,1760724632679,-458.12423478,0.00027673,5]
[391670854,1760724632691,-500.0,0.00027673,5]
[391670855,1760724632703,-511.23615592,0.00027694,2]
[391670857,1760724632714,-150.0,0.00027903,2]
[391670858,1760724632725,-500.0,0.00027908,5]
[391670859,1760724632735,-261.17477213,0.00027908,5]
[391670964,1760724637976,150.0,0.00022258,2]
[391670968,1760724638041,-238.82522787,0.00027908,5]
[391670969,1760724638050,-69.01127193,0.00027908,5]
[391670970,1760724638062,-430.98872807,0.00027908,5]
[391670971,1760724638071,-500.0,0.00027908,5]
[391670972,1760724638080,-160.229,0.00027937,18]
[391670973,1760724638090,-318.49,0.00027945,8]
[391670974,1760724638100,-352.8118533,0.00027989,2]
[391670975,1760724638109,-500.0,0.00027989,2]
[391670976,1760724638118,-486.66098129,0.00027989,2]
[391670977,1760724638127,-500.0,0.00027989,2]
[391670978,1760724638137,-500.0,0.00027989,2]
[391670979,1760724638147,-500.0,0.00027989,2]
[391670980,1760724638157,-629.44774127,0.00027989,2]
[391670981,1760724638167,-1544.77222365,0.0002799,2]
[391670982,1760724638176,-352.64,0.00028004,2]
[391670983,1760724638185,-2043.31274761,0.00028084,2]
[391670984,1760724638195,-525.49,0.00028087,10]
[391670985,1760724638204,-437.91,0.00028087,10]
[391670986,1760724638213,-275.57,0.00028093,10]
[391670987,1760724638222,-500.0,0.00028094,10]
[391670988,1760724638231,-1159.77,0.00028094,3]
[391670990,1760724638240,-733.03,0.00028094,3]
[391670992,1760724638250,-366.52,0.00028094,3]
[391670994,1760724638259,-183.26,0.00028094,3]
[391670995,1760724638269,-549.78,0.00028094,3]
[391670996,1760724638278,-151.2159054,0.00028097,2]
[391670997,1760724638287,-250.0,0.00028097,2]
[391670998,1760724638296,-250.0,0.00028097,2]
[391670999,1760724638305,-250.0,0.00028097,2]
[391671000,1760724638314,-250.0,0.00028097,2]
[391671001,1760724638323,-250.0,0.00028097,2]
[391671002,1760724638332,-250.0,0.00028097,2]
[391671003,1760724638342,-166.0,0.00028097,2]
[391671004,1760724638350,-250.0,0.00028097,2]
[391671005,1760724638359,-250.0,0.00028097,2]
[391671006,1760724638369,-250.0,0.00028097,2]
[391671007,1760724638377,-250.0,0.00028097,2]
[391671008,1760724638386,-181.08010149,0.00028097,2]
[391671009,1760724638395,-250.0,0.00028097,2]
[391671010,1760724638405,-250.0,0.00028097,2]
[391671011,1760724638414,-250.0,0.00028097,2]
[391671012,1760724638423,-280.52537335,0.00028097,2]
[391671013,1760724638432,-250.0,0.00028097,2]
[391671014,1760724638441,-250.0,0.00028097,2]
[391671015,1760724638450,-250.0,0.00028097,2]
[391671016,1760724638459,-250.0,0.00028097,2]
[391671017,1760724638468,-250.0,0.00028097,2]
[391671018,1760724638477,-250.0,0.00028097,2]
[391671019,1760724638486,-250.0,0.00028097,2]
[391671020,1760724638495,-250.0,0.00028097,2]
[391671021,1760724638503,-250.0,0.00028097,2]
[391671022,1760724638512,-1000.0,0.00028097,2]
[391671023,1760724638521,-250.0,0.00028097,2]
[391671024,1760724638530,-1000.0,0.00028097,2]
[391671025,1760724638539,-1000.0,0.00028097,2]
[391671026,1760724638548,-741.8533594,0.00028097,2]
[391671027,1760724638557,-1000.0,0.00028097,2]
[391671028,1760724638566,-1000.0,0.00028097,2]
[391671029,1760724638575,-1000.0,0.00028097,2]
[391671030,1760724638583,-1000.0,0.00028097,2]
[391671031,1760724638592,-250.0,0.00028097,2]
[391671032,1760724638601,-500.0,0.00028103,2]
[391671033,1760724638609,-374.27185309,0.00028103,2]
[391671034,1760724638618,-241.31966154,0.00028103,2]
[391671035,1760724638627,-148588.248048,0.00028104,2]
[391671036,1760724638636,-200.12251496,0.00028104,2]
[391671037,1760724638645,-1003.49908857,0.00028104,2]
[391671038,1760724638656,-200.0,0.00028104,10]
[391671039,1760724638664,-200.0,0.00028104,10]
[391671040,1760724638673,-204.151646,0.00028104,10]
[391671041,1760724638682,-74294.1240238,0.00028111,2]
[391671042,1760724638691,-4250.81,0.00028113,2]
[391671043,1760724638700,-99773.67730753,0.00028114,2]
[391671044,1760724638709,-2866.16798022,0.00028121,2]
[391671045,1760724638718,-153.0,0.00028129,2]
[391671046,1760724638727,-153.0,0.00028129,2]
[391671047,1760724638736,-153.0,0.00028129,2]
[391671048,1760724638744,-153.0,0.00028129,2]
[391671049,1760724638753,-153.0,0.00028129,2]
[391671050,1760724638762,-153.0,0.00028129,2]
[391671051,1760724638770,-153.0,0.00028129,2]
[391671052,1760724638779,-153.0,0.00028129,2]
[391671053,1760724638788,-153.0,0.00028129,2]
[391671054,1760724638797,-153.0,0.00028129,2]
[391671055,1760724638806,-153.0,0.00028129,2]
[391671056,1760724638815,-516.59661999,0.00028167,5]
[391671057,1760724638824,-500.0,0.00028167,5]
[391671058,1760724638832,-500.0,0.00028173,5]
[391671059,1760724638841,-500.0,0.00028173,5]
[391671060,1760724638851,-500.0,0.00028173,5]
[391671061,1760724638860,-500.0,0.00028173,5]
[391671062,1760724638869,-500.0,0.00028173,2]
[391671063,1760724638878,-500.0,0.00028173,5]
[391671064,1760724638887,-500.0,0.00028173,5]
[391671065,1760724638896,-244.01295844,0.00028173,5]
[391671066,1760724638905,-300.27351339,0.00028173,5]
[391671067,1760724638919,-500.0,0.00028173,5]
[391671068,1760724638928,-500.0,0.00028173,5]
[391671069,1760724638937,-500.0,0.00028173,5]
[391671070,1760724638946,-500.0,0.00028173,5]
[391671071,1760724638955,-501.60162233,0.00028173,5]
[391671072,1760724638965,-500.0,0.00028173,5]
[391671073,1760724638974,-500.0,0.00028173,5]
[391671074,1760724638983,-500.0,0.00028173,5]
[391671075,1760724638993,-500.0,0.00028173,5]
[391671076,1760724639003,-434.36310833,0.00028173,5]
[391671077,1760724639012,-208.16613429,0.00028173,5]
[391671078,1760724639022,-500.51536952,0.00028173,5]
[391671079,1760724639031,-229.80515195,0.00028173,5]
[391671080,1760724639040,-500.0,0.00028173,5]
[391671081,1760724639049,-1786.6,0.000282,2]
[391671082,1760724639058,-1786.6,0.000282,2]
[391671083,1760724639073,-1786.6,0.000282,2]
[391671084,1760724639082,-2426.51,0.000282,2]
[391671085,1760724639092,-500.0,0.00028204,5]
[391671086,1760724639102,-500.0,0.00028204,5]
[391671087,1760724639111,-262.5,0.00028205,2]
[391671088,1760724639120,-1786.6,0.00028209,2]
[391671089,1760724639130,-1786.6,0.00028209,2]
[391671090,1760724639139,-1786.6,0.00028209,2]
[391671091,1760724639148,-1786.6,0.00028209,2]
[391671092,1760724639158,-1786.6,0.00028209,2]
[391671093,1760724639168,-318.49,0.00028219,9]
[391671094,1760724639177,-1000.0,0.00028221,5]
[391671095,1760724639187,-1000.0,0.00028221,5]
[391671096,1760724639197,-151.0,0.000283,15]
[391671098,1760724639207,-151.0,0.000283,20]
[391671099,1760724639216,-500.0,0.00028368,10]
[391671100,1760724639226,-151.0,0.000284,19]
[391671101,1760724639237,-151.0,0.000284,16]
[391671102,1760724639247,-300.0,0.00028468,30]
[391671103,1760724639257,-300.0,0.00028468,30]
[391671104,1760724639266,-300.0,0.00028468,30]
[391671105,1760724639276,-300.0,0.00028468,30]